fUSD/lending_fUSD_20240823
["ID","MTS","AMOUNT","RATE_DAILY","PERIOD"]
[335683728,1724427038939,-593.37,0.00010999,2]
[335683730,1724427038949,-500.0,0.00010999,2]
[335683732,1724427038958,-500.0,0.00010999,2]
[335683734,1724427038968,-500.0,0.00010999,2]
[335683736,1724427038980,-500.0,0.00010999,2]
[335683738,1724427038989,-500.0,0.00010999,2]
[335683740,1724427038999,-500.0,0.00010999,2]
[335683742,1724427039009,-500.0,0.00010999,2]
[335683744,1724427039018,-500.0,0.00010999,2]
[335683746,1724427039028,-500.0,0.00010999,2]
[335683748,1724427039037,-563.19916896,0.00010999,2]
[335683750,1724427039047,-500.0,0.00010999,2]
[335683752,1724427039058,-461.95,0.00010999,2]
[335683754,1724427039067,-500.0,0.00010999,2]
[335683756,1724427039077,-500.0,0.00010999,2]
[335683758,1724427039086,-500.0,0.00010999,2]
[335683760,1724427039096,-500.0,0.00010999,2]
[335683761,1724427039105,-500.0,0.00010999,2]
[335683763,1724427039114,-500.0,0.00010999,2]
[335683765,1724427039124,-500.0,0.00010999,2]
[335683767,1724427039133,-500.0,0.00010999,2]
[335683769,1724427039143,-396.02,0.00010999,2]
[335683771,1724427039153,-500.0,0.00010999,2]
[335683774,1724427039163,-500.0,0.00010999,2]
[335683775,1724427039172,-500.0,0.00010999,2]
[335683777,1724427039182,-500.0,0.00010999,2]
[335683779,1724427039191,-500.0,0.00010999,2]
[335683781,1724427039201,-500.0,0.00010999,2]
[335683783,1724427039210,-500.0,0.00010999,2]
[335683785,1724427039220,-253.83,0.00010999,2]
[335683787,1724427039229,-500.0,0.00010999,2]
[335683789,1724427039238,-341.25,0.00010999,2]
[335683791,1724427039248,-500.0,0.00010999,2]
[335683793,1724427039258,-500.0,0.00010999,2]
[335683795,1724427039267,-500.0,0.00010999,2]
[335683797,1724427039276,-500.0,0.00010999,2]
[335683799,1724427039286,-500.0,0.00010999,2]
[335683801,1724427039295,-500.0,0.00010999,2]
[335683803,1724427039305,-368.98,0.00010999,2]
[335683805,1724427039314,-500.0,0.00010999,2]
[335683807,1724427039323,-500.0,0.00010999,2]
[335683809,1724427039333,-500.0,0.00010999,2]
[335683810,1724427039342,-500.0,0.00010999,2]
[335683812,1724427039352,-500.0,0.00010999,2]
[335683814,1724427039362,-500.0,0.00010999,2]
[335683816,1724427039371,-500.0,0.00010999,2]
[335683818,1724427039381,-500.0,0.00010999,2]
[335683821,1724427039391,-500.0,0.00010999,2]
[335683823,1724427039400,-500.0,0.00010999,2]
[335683825,1724427039409,-500.0,0.00010999,2]
[335683827,1724427039419,-500.0,0.00010999,2]
[335683829,1724427039429,-500.0,0.00010999,2]
[335683831,1724427039438,-500.0,0.00010999,2]
[335683833,1724427039454,-500.0,0.00010999,2]
[335683836,1724427039468,-500.0,0.00010999,2]
[335683840,1724427039479,-500.0,0.00010999,2]
[335683842,1724427039488,-500.0,0.00010999,2]
[335683844,1724427039499,-500.0,0.00010999,2]
[335683846,1724427039510,-500.0,0.00010999,2]
[335683848,1724427039520,-500.0,0.00010999,2]
[335683850,1724427039530,-458.40178712,0.00010999,2]
[335683852,1724427039540,-548.68,0.00010999,2]
[335683854,1724427039550,-548.68,0.00010999,2]
[335683856,1724427039560,-548.68,0.00010999,2]
[335683858,1724427039571,-548.68,0.00010999,2]
[335683860,1724427039581,-548.68,0.00010999,2]
[335683862,1724427039591,-548.68,0.00010999,2]
[335683864,1724427039601,-548.68,0.00010999,2]
[335683867,1724427039611,-548.68,0.00010999,2]
[335683870,1724427039626,-548.68,0.00010999,2]
[335683872,1724427039636,-548.68,0.00010999,2]
[335683874,1724427039646,-548.68,0.00010999,2]
[335683876,1724427039657,-548.68,0.00010999,2]
[335683878,1724427039667,-548.68,0.00010999,2]
[335683880,1724427039677,-548.68,0.00010999,2]
[335683882,1724427039686,-548.68,0.00010999,2]
[335683884,1724427039699,-548.68,0.00010999,2]
[335683886,1724427039710,-548.68,0.00010999,2]
[335683888,1724427039719,-548.68,0.00010999,2]
[335683890,1724427039730,-548.68,0.00010999,2]
[335683892,1724427039740,-548.68,0.00010999,2]
[335683894,1724427039750,-548.68,0.00010999,2]
[335683896,1724427039760,-548.68,0.00010999,2]
[335683897,1724427039771,-155.0,0.00010999,2]
[335683898,1724427039781,-548.71667775,0.00010999,2]
[335683899,1724427039791,-172.84134985,0.00010999,2]
[335683900,1724427039802,-506.0,0.00011,2]
[335683901,1724427039813,-425272.31353339,0.00011,2]
[335683902,1724427039829,-902.63081299,0.00011,2]
[335683903,1724427039855,-615.002,0.00011,2]
[335683904,1724427039871,-576.87446552,0.00011,2]
[335683905,1724427039882,-2116.2561326,0.00011,2]
[335683906,1724427040031,-1308.53482217,0.00010999,2]
[335683907,1724427040043,-1007.52312096,0.00010999,2]
[335683908,1724427040055,-643.19292963,0.00010999,2]
[335683909,1724427040064,-130850.57679106,0.00011,2]
[335683910,1724427040076,-800.0,0.00011,2]
[335683911,1724427040087,-881.44588358,0.00011,2]
[335683912,1724427040098,-5070.09841738,0.00011,2]
[335683913,1724427040117,-193989.35462854,0.00011,2]
[335683914,1724427040135,-198200.30956167,0.00011,2]
[335683915,1724427040147,-1593.55023297,0.00011,2]
[335683916,1724427040158,-2268.5,0.00011,2]
[335683917,1724427040170,-533.34370485,0.00011,2]
[335683918,1724427040187,-719.26763437,0.00011,2]
[335683919,1724427040202,-1166.5322319,0.00011,2]
[335683920,1724427040213,-26012.45837098,0.00011,2]
[335683921,1724427040224,-4599.48305126,0.00011,2]
[335683922,1724427040236,-5488.48543711,0.00011,2]
[335683923,1724427040247,-2053.05735365,0.00011,2]
[335683924,1724427040259,-1140.8915915,0.00011,2]
[335683925,1724427040270,-5169.12813013,0.00011,2]
[335683964,1724427042608,-6592.64354405,0.00011,2]
[335683965,1724427042623,-5420.415,0.00011,2]
[335683966,1724427042634,-5400.39600852,0.00011,2]
[335683967,1724427042646,-13779.17179148,0.00011,2]
[335683968,1724427042657,-1302.1840501,0.00011,2]
[335683969,1724427042669,-1720.3100005,0.00011,2]
[335683970,1724427042681,-5461.22,0.00011,2]
[335683971,1724427042692,-646656.74581744,0.00011,2]
[335683972,1724427042704,-269.10469008,0.00011,2]
[335683973,1724427042716,-43153.32606801,0.00011,2]
[335683974,1724427042728,-328.04999985,0.00011,2]
[335683975,1724427042739,-29741.84051448,0.00011,2]
[335683976,1724427042750,-7300.0,0.00011,2]
[335683977,1724427042774,-712.02712438,0.00011,2]
[335683978,1724427042813,-596.73870364,0.00011,2]
[335683979,1724427042824,-359.73856219,0.00011,2]
[335683980,1724427042853,-6662.113764,0.00011,2]
[335683990,1724427045594,-2382.80711057,0.000107,2]
[335683991,1724427045607,-71.98878943,0.000107,2]
[335683992,1724427045616,-221.79115753,0.0001089,2]
[335683993,1724427045629,-362.59005304,0.00010995,2]
[335683994,1724427045640,-137.40994696,0.00010995,2]
[335683995,1724427045649,-6632.88005303,0.00011,2]
[335683996,1724427045721,-792.73224283,0.00011,2]
[335683997,1724427045738,-1470.51803953,0.00011,2]
[335683998,1724427045749,-2985.11727615,0.00011,2]
[335683999,1724427045761,-5930.48493681,0.00011,2]
[335684000,1724427045793,-5486.25292594,0.00011,2]
[335684001,1724427045960,-500.0,0.00010999,2]
[335684002,1724427045970,-1789.91559988,0.00011,2]
[335684003,1724427045981,-265.595,0.00011,2]
[335684004,1724427045993,-63262.16889819,0.00011,2]
[335684010,1724427068665,1400.0,8.22e-05,2]
[335684011,1724427070247,1400.0,9.59e-05,2]
[335684014,1724427083980,407.91155542,0.00027,120]
[335684015,1724427089413,150.0,8.22e-05,2]
[335684016,1724427089439,1050.0,8.22e-05,2]
[335684017,1724427091010,1200.0,9.59e-05,2]
[335684022,1724427205668,1000.0,0.00027,120]
[335684023,1724427206028,1000.0,0.00027,120]
[335684024,1724427242256,500.0,0.00027,120]
[335684025,1724427256043,150.24,7.992e-05,2]
[335684026,1724427266403,200.0,0.00027,120]
[335684027,1724427272659,5313.62619595,0.00027,120]
[335684029,1724427282257,39.5,9.995e-05,2]
[335684030,1724427282278,2861.98,9.995e-05,2]
[335684031,1724427301832,2249.6,9.978e-05,2]
[335684032,1724427326097,250.0,9.969e-05,2]
[335684033,1724427333864,2904.50846403,0.00025,60]
[335684034,1724427339141,909.98,9.961e-05,2]
[335684035,1724427366949,150.0,9.96e-05,2]
[335684036,1724427366972,118.06,9.96e-05,2]
[335684037,1724427376406,1950.0,9.954e-05,2]
[335684038,1724427378257,171.18,9.956e-05,2]
[335684039,1724427437777,229.66,8.219e-05,2]
[335684040,1724427488425,2000.0,0.00027,120]
[335684041,1724427540223,304.58048687,9.962e-05,2]
[335684042,1724427614218,1000.0,0.00012111,30]
[335684043,1724427622421,1000.0,0.00025,60]
[335684044,1724427629351,1000.0,0.00027,120]
[335684045,1724427632978,1050.0,0.0001,2]
[335684046,1724427648665,1200.0,8.22e-05,2]
[335684047,1724427650392,1200.0,9.59e-05,2]
[335684048,1724427670760,500.0,0.0001,2]
[335684049,1724427676654,1000.0,8.22e-05,2]
[335684050,1724427676948,473.7520356,8.275e-05,2]
[335684051,1724427678269,1000.0,9.59e-05,2]
[335684052,1724427684487,262.79087656,0.0001,2]
[335684053,1724427695095,150.01,7.245e-05,2]
[335684054,1724427717277,500.0,0.0001,2]
[335684055,1724427722635,238.50868618,0.00021,120]
[335684056,1724427741322,162.18869921,0.0001,2]
[335684057,1724427746985,155.0,0.00010009,2]
[335684062,1724427757252,500.0,0.0001,2]
[335684063,1724427778097,160.0,9.969e-05,2]
[335684064,1724427804672,1000.0,0.00027,120]
[335684065,1724427805061,1000.0,0.00027,120]
[335684066,1724427835915,236.85,9.965e-05,2]
[335684067,1724427844414,500.0,0.00027,120]
[335684068,1724427867325,200.0,0.00027,120]
[335684070,1724427926487,218.17,8.219e-05,2]
[335684073,1724428063043,500.0,0.00027,120]
[335684074,1724428069333,1007.4782144,0.00025,60]
[335684075,1724428071695,500.0,0.00027,120]
[335684076,1724428079092,500.0,0.00027,120]
[335684077,1724428086304,500.0,0.00027,120]
[335684078,1724428094230,500.0,0.00027,120]
[335684079,1724428102058,500.0,0.00027,120]
[335684080,1724428111225,500.0,0.00027,120]
[335684081,1724428118869,500.0,0.00027,120]
[335684082,1724428126836,500.0,0.00027,120]
[335684083,1724428135961,500.0,0.00027,120]
[335684084,1724428143204,500.0,0.00027,120]
[335684249,1724428154648,500.0,0.00027,120]
[335684250,1724428161765,500.0,0.00027,120]
[335684254,1724428162969,500.0,0.00027,120]
[335684257,1724428170618,500.0,0.00027,120]
[335684258,1724428178454,500.0,0.00027,120]
[335684259,1724428182931,156.39812584,0.00010009,2]
[335684262,1724428186227,500.0,0.00027,120]
[335684263,1724428192970,500.0,0.00027,120]
[335684264,1724428200112,500.0,0.00027,120]
[335684265,1724428206633,500.0,0.00027,120]
[335684266,1724428214226,500.0,0.00027,120]
[335684269,1724428220663,500.0,0.00027,120]
[335684293,1724428231737,-840.0,0.00010059,2]
[335684294,1724428231747,-906.55062526,0.00010097,2]
[335684295,1724428231758,-1205.35443696,0.00010097,2]
[335684296,1724428231957,-1033.43289267,0.00010097,2]
[335684297,1724428231966,-275.24648864,0.00010097,2]
[335684298,1724428231976,-409.03797965,0.00010471,2]
[335684299,1724428231986,-581.00310502,0.00010471,2]
[335684300,1724428232008,-3769.61457231,0.00010471,2]
[335684301,1724428232018,-218.17,0.00010474,2]
[335684302,1724428232028,-300.0,0.00010504,2]
[335684303,1724428232037,-300.0,0.00010504,2]
[335684304,1724428232046,-2505.08172549,0.00010505,2]
[335684305,1724428232055,-174.34335733,0.00010505,2]
[335684306,1724428232065,-150.0,0.00010577,2]
[335684307,1724428232075,-2940.54198821,0.00010699,2]
[335684308,1724428232084,-271.15585624,0.00010713,2]
[335684309,1724428232093,-150.0,0.00010767,2]
[335684310,1724428232105,-499.99,0.00010794,2]
[335684311,1724428232114,-150.0,0.00010795,2]
[335684312,1724428232123,-32879.2761,0.00010796,2]
[335684313,1724428232132,-570.63546921,0.000108,2]
[335684314,1724428232142,-155.0,0.00010861,2]
[335684315,1724428232151,-299.73978799,0.00010888,2]
[335684316,1724428232161,-197.49007546,0.00010888,2]
[335684317,1724428232173,-913.90026,0.0001089,2]
[335684318,1724428232182,-150.99,0.0001089,2]
[335684319,1724428232191,-155.0,0.00010899,2]
[335684320,1724428232200,-269.33423334,0.000109,2]
[335684321,1724428232210,-2500.0,0.000109,2]
[335684322,1724428232219,-302.82271652,0.000109,2]
[335684323,1724428232228,-822.90146104,0.000109,2]
[335684324,1724428232237,-19350.29018511,0.000109,2]
[335684325,1724428232246,-500.0,0.00010912,2]
[335684326,1724428232255,-500.0,0.00010958,2]
[335684327,1724428232265,-200.0,0.00010959,2]
[335684328,1724428232276,-156.16,0.00010959,2]
[335684329,1724428232286,-1200.0,0.0001096,2]
[335684330,1724428232296,-1000.0,0.0001096,2]
[335684331,1724428232305,-155.0,0.00010979,2]
[335684332,1724428232314,-10000.0,0.00010987,3]
[335684333,1724428232323,-1000.0,0.00010988,2]
[335684334,1724428232332,-775.4,0.0001099,3]
[335684335,1724428232342,-388.07971391,0.00010996,2]
[335684336,1724428232351,-27648.0434379,0.00010997,2]
[335684337,1724428232360,-3237.8468294,0.00010997,2]
[335684338,1724428232369,-10413.2028545,0.00010997,2]
[335684339,1724428232378,-500.0,0.00010998,2]
[335684340,1724428232386,-173.0160662,0.00010998,2]
[335684341,1724428232395,-500.0,0.00010998,2]
[335684342,1724428232405,-500.0,0.00010998,2]
[335684343,1724428232414,-500.0,0.00010998,2]
[335684344,1724428232425,-408.84192599,0.00010998,2]
[335684345,1724428232441,-172.84134984,0.00010999,2]
[335684346,1724428232451,-1479.62543638,0.00010999,2]
[335684347,1724428232460,-1000.0,0.00010999,2]
[335684348,1724428232469,-1000.0,0.00010999,2]
[335684349,1724428232479,-1000.0,0.00010999,2]
[335684350,1724428232488,-1000.0,0.00010999,2]
[335684351,1724428232497,-1000.0,0.00010999,2]
[335684352,1724428232506,-1000.0,0.00010999,2]
[335684353,1724428232515,-500.0,0.00010999,2]
[335684354,1724428232524,-500.0,0.00010999,2]
[335684355,1724428232533,-500.0,0.00010999,2]
[335684356,1724428232541,-500.0,0.00010999,2]
[335684357,1724428232550,-500.0,0.00010999,2]
[335684358,1724428232559,-500.0,0.00010999,2]
[335684359,1724428232568,-368.74,0.00010999,2]
[335684360,1724428232577,-500.0,0.00010999,2]
[335684361,1724428232587,-196.80014843,0.00010999,2]
[335684362,1724428232596,-198.59248725,0.00010999,2]
[335684363,1724428232605,-518.41497671,0.00010999,2]
[335684364,1724428232614,-918423.84217479,0.00011,2]
[335684365,1724428232814,-2966.48754,0.00011,2]
[335684366,1724428232830,-149266.45545917,0.00011,2]
[335684367,1724428233518,500.0,0.00027,120]
[335684374,1724428237709,-1828.30329108,0.000109,2]
[335684375,1724428237718,-336.48161791,0.00011,2]
[335684376,1724428237805,-1149.40595818,0.00011,2]
[335684377,1724428237816,-585.70767439,0.00011,2]
[335684378,1724428237829,-3846.94404154,0.00011,2]
[335684379,1724428237957,-468.87,0.00011,2]
[335684498,1724428239729,-288.67009288,0.00011,2]
[335684499,1724428239792,-180991.70109468,0.00011,2]
[335684500,1724428240028,-2377.18835422,0.00011,2]
[335684501,1724428240039,-400.98284782,0.00011,2]
[335684502,1724428240051,-4231.19069742,0.00011,2]
[335684503,1724428240062,-4019.09127962,0.00011,2]
[335684504,1724428240073,-315.6,0.00011,2]
[335684505,1724428240084,-2264.48904993,0.00011,2]
[335684506,1724428240112,500.0,0.00027,120]
[335684507,1724428240123,-1191.74371841,0.00011,2]
[335684508,1724428240134,-1367.02460692,0.00011,2]
[335684522,1724428243185,-7898.999995,0.00011,2]
[335684523,1724428243196,-2643.65474169,0.00011,2]
[335684544,1724428245873,-461.88700199,0.00010999,2]
[335684545,1724428245993,-538.11299801,0.00010999,2]
[335684546,1724428246003,-3122.08976297,0.00011,2]
[335684547,1724428246016,-1906.32773884,0.00011,2]
[335684548,1724428246028,-21558.59999998,0.00011,2]
[335684549,1724428246073,500.0,0.00027,120]
[335684560,1724428257065,500.0,0.00027,120]
[335684561,1724428261093,150.00000001,0.00025,60]
[335684562,1724428263270,500.0,0.00027,120]
[335684564,1724428268122,800.0,8.22e-05,2]
[335684565,1724428269760,800.0,9.59e-05,2]
[335684566,1724428270829,500.0,0.00027,120]
[335684567,1724428276735,500.0,0.00027,120]
[335684568,1724428284351,500.0,0.00027,120]
[335684570,1724428291464,500.0,0.00027,120]
[335684571,1724428298233,500.0,0.00027,120]
[335684572,1724428301563,900.0,8.22e-05,2]
[335684573,1724428303116,7.25977592,9.59e-05,2]
[335684574,1724428303138,892.74022408,9.59e-05,2]
[335684575,1724428304441,150.0,7.905e-05,2]
[335684576,1724428306279,500.0,0.00027,120]
[335684577,1724428312574,500.0,0.00027,120]
[335684578,1724428314363,1068.70779679,0.00025,90]
[335684579,1724428319192,500.0,0.00027,120]
[335684581,1724428325548,500.0,0.00027,120]
[335684583,1724428333126,500.0,0.00027,120]
[335684584,1724428339385,500.0,0.00027,120]
[335684585,1724428348072,500.0,0.00027,120]
[335684586,1724428354713,500.0,0.00027,120]
[335684587,1724428362753,500.0,0.00027,120]
[335684588,1724428366891,500.0,8.275e-05,2]
[335684589,1724428369358,500.0,0.00027,120]
[335684590,1724428376466,500.0,0.00027,120]
[335684592,1724428382863,500.0,0.00027,120]
[335684593,1724428389453,500.0,0.00027,120]
[335684594,1724428395748,500.0,0.00027,120]
[335684595,1724428402032,500.0,0.00027,120]
[335684596,1724428404912,1000.0,0.00027,120]
[335684597,1724428405306,1000.0,0.00027,120]
[335684598,1724428406393,196.35,8.535e-05,2]
[335684600,1724428408782,500.0,0.00027,120]
[335684601,1724428415392,500.0,0.00027,120]
[335684603,1724428421680,500.0,0.00027,120]
[335684604,1724428428182,500.0,0.00027,120]
[335684607,1724428435292,500.0,0.00027,120]
[335684608,1724428441484,500.0,0.00027,120]
[335684609,1724428447064,500.0,0.00027,120]
[335684610,1724428448519,500.0,0.00027,120]
[335684611,1724428456055,500.0,0.00027,120]
[335684613,1724428462295,500.0,0.00027,120]
[335684614,1724428466750,200.0,0.00027,120]
[335684615,1724428469972,500.0,0.00027,120]
[335684616,1724428477214,500.0,0.00027,120]
[335684618,1724428483952,500.0,0.00027,120]
[335684619,1724428490936,500.0,0.00027,120]
[335684620,1724428495361,3320.4404,0.00027,120]
[335684621,1724428497359,500.0,0.00027,120]
[335684622,1724428507067,500.0,0.00027,120]
[335684624,1724428530737,652.26636829,0.00027,120]
[335684627,1724428606749,6387.102785,0.00027,120]
[335684628,1724428623090,1857.96363476,0.00027,120]
[335684629,1724428711457,200.75246599,0.00025,60]
[335684630,1724428829463,250.0,9.986e-05,2]
[335684631,1724428857012,169.89742313,9.979e-05,2]
[335684633,1724428875007,693.81147751,9.979e-05,2]
[335684634,1724428884500,7147.20087528,9.979e-05,2]
[335684635,1724428884523,9103.07235053,9.979e-05,2]
[335684636,1724428904221,186.53,8.219e-05,2]
[335684637,1724428931998,710.39764947,9.962e-05,2]
[335684638,1724428932018,10000.0,9.962e-05,2]
[335684639,1724428932041,5539.87557634,9.962e-05,2]
[335684640,1724428969945,4460.12442366,9.962e-05,2]
[335684641,1724428969966,3404.62564187,9.962e-05,2]
[335684642,1724428975198,1152.74082596,9.962e-05,2]
[335684643,1724428981896,5442.63353217,9.962e-05,2]
[335684644,1724428981917,10000.0,9.962e-05,2]
[335684645,1724428981937,52.76762068,9.962e-05,2]
[335684646,1724428989854,377.35855902,9.962e-05,2]
[335684647,1724428990507,693.15255897,9.962e-05,2]
[335684648,1724428992243,3637.29541211,9.962e-05,2]
[335684649,1724429003990,1000.0,0.00027,120]
[335684650,1724429004568,1000.0,0.00027,120]
[335684651,1724429045387,500.0,0.00027,120]
[335684652,1724429064565,200.0,0.00027,120]
[335684653,1724429097661,618.29,9.96e-05,2]
[335684656,1724429155408,4621.13584922,9.96e-05,2]
[335684657,1724429155428,9384.82145419,9.96e-05,2]
[335684674,1724429334977,150.0,9.938e-05,2]
[335684675,1724429335000,21.18,9.938e-05,2]
[335684676,1724429342597,250.0,9.938e-05,2]
[335684677,1724429350499,500.0,0.00027,120]
[335684678,1724429352659,343.99854581,9.96e-05,2]
[335684679,1724429352680,2726.65101521,9.96e-05,2]
[335684687,1724429367523,500.0,0.00027,120]
[335684688,1724429377944,500.0,0.00027,120]
[335684689,1724429386254,244.2,8.219e-05,2]
[335684690,1724429386281,500.0,0.00027,120]
[335684691,1724429394871,500.0,0.00027,120]
[335684692,1724429403760,500.0,0.00027,120]
[335684693,1724429405770,7029.14898479,9.946e-05,2]
[335684694,1724429405792,2970.85101521,9.946e-05,2]
[335684695,1724429406924,150.0,9.96e-05,2]
[335684696,1724429407250,150.0,9.96e-05,2]
[335684697,1724429407771,150.0,9.96e-05,2]
[335684698,1724429407880,150.0,9.96e-05,2]
[335684699,1724429408050,150.0,9.96e-05,2]
[335684700,1724429408236,150.0,9.96e-05,2]
[335684701,1724429408427,150.0,9.96e-05,2]
[335684702,1724429408633,150.0,9.96e-05,2]
[335684703,1724429408850,150.0,9.96e-05,2]
[335684704,1724429409062,150.0,9.96e-05,2]
[335684705,1724429409301,150.0,9.96e-05,2]
[335684706,1724429409496,150.0,9.96e-05,2]
[335684707,1724429409682,150.0,9.96e-05,2]
[335684708,1724429409902,150.0,9.96e-05,2]
[335684709,1724429410085,150.0,9.96e-05,2]
[335684710,1724429410320,150.0,9.96e-05,2]
[335684711,1724429410548,150.0,9.96e-05,2]
[335684712,1724429410987,150.0,9.96e-05,2]
[335684713,1724429411268,150.0,9.96e-05,2]
[335684714,1724429411460,202.39268906,9.96e-05,2]
[335684715,1724429412199,500.0,0.00027,120]
[335684716,1724429420051,500.0,0.00027,120]
[335684717,1724429427955,500.0,0.00027,120]
[335684730,1724429431795,-594.67731106,0.0001007,2]
[335684731,1724429431806,-155.33268894,0.0001007,2]
[335684732,1724429431816,-96.02192604,0.00010097,2]
[335684733,1724429431828,-533.26697781,0.00010097,2]
[335684734,1724429431837,-160.46,0.00010109,2]
[335684735,1724429431847,-193.96,0.00010439,2]
[335684736,1724429431856,-1000.0,0.00010472,2]
[335684737,1724429431866,-244.2,0.00010473,2]
[335684738,1724429431875,-317.0,0.00010547,2]
[335684739,1724429431884,-179.68,0.00010599,2]
[335684740,1724429431893,-658.1228,0.000108,2]
[335684741,1724429431903,-61.95560721,0.000108,2]
[335684742,1724429431915,-438.03439279,0.000108,2]
[335684743,1724429431925,-150.0,0.00010887,2]
[335684744,1724429431934,-300.0,0.00010887,2]
[335684745,1724429431943,-396.32145852,0.00010887,2]
[335684746,1724429431954,-876.72999162,0.00010887,2]
[335684747,1724429431964,-2194.55656055,0.00010887,2]
[335684748,1724429431975,-1256.32198931,0.00010887,2]
[335684749,1724429431984,-266.74906548,0.00010888,2]
[335684750,1724429431993,-892.92894521,0.00010888,2]
[335684751,1724429432004,-273.07105479,0.00010888,2]
[335684752,1724429432012,-248.536,0.00010888,2]
[335684753,1724429432021,-3319.0,0.00010888,2]
[335684754,1724429432030,-764.0,0.00010888,2]
[335684755,1724429432039,-89.34652056,0.00010888,2]
[335684756,1724429432055,-170.65347944,0.00010888,2]
[335684757,1724429432064,-1829.34652056,0.00010888,2]
[335684758,1724429432075,-428.659257,0.00010888,2]
[335684759,1724429432086,-3588.99422244,0.00010888,2]
[335684760,1724429432095,-1647.45297529,0.00010888,2]
[335684761,1724429432114,-2089.59902471,0.00010888,2]
[335684762,1724429432123,-21777.0,0.00010888,2]
[335684763,1724429432132,-289.0,0.00010888,2]
[335684764,1724429432141,-1205.0,0.00010888,2]
[335684765,1724429432151,-473.3721,0.0001089,2]
[335684766,1724429432160,-155.0,0.0001089,2]
[335684767,1724429432173,-503.0,0.00010898,2]
[335684768,1724429432182,-355.7893,0.00010899,2]
[335684770,1724429432191,-4241.171,0.000109,2]
[335684771,1724429432201,-230.85791424,0.000109,2]
[335684772,1724429432210,-1218.86886072,0.000109,2]
[335684774,1724429432220,-783.27549378,0.000109,2]
[335684775,1724429432229,-2806.00000001,0.00010911,2]
[335684777,1724429432238,-500.0,0.00010912,2]
[335684779,1724429432247,-949.71257476,0.00010949,2]
[335684781,1724429432256,-303.98208233,0.00010949,2]
[335684783,1724429432265,-500.0,0.00010958,2]
[335684785,1724429432274,-500.0,0.00010958,2]
[335684787,1724429432284,-500.0,0.00010958,2]
[335684789,1724429432299,-463.18701262,0.00010958,2]
[335684790,1724429432308,-500.0,0.00010958,2]
[335684791,1724429432317,-500.0,0.00010958,2]
[335684792,1724429432326,-385.47205069,0.00010958,2]
[335684793,1724429432336,-342.48761112,0.00010958,2]
[335684794,1724429432345,-200.0,0.00010959,2]
[335684795,1724429432354,-167.69,0.00010959,2]
[335684796,1724429432364,-250.0,0.00010959,2]
[335684797,1724429432373,-800.0,0.0001096,2]
[335684798,1724429432383,-900.0,0.0001096,2]
[335684799,1724429432392,-2995.0076103,0.00010979,2]
[335684800,1724429432402,-2212.81480299,0.00010989,2]
[335684801,1724429432411,-1923.0,0.0001099,2]
[335684802,1724429432423,-1258.0,0.0001099,2]
[335684803,1724429432432,-1544.0,0.0001099,2]